Cogmind - Beta 16.1 @@@ ROGUE MODE // 2026.02.17 @ 00:01:40 Player: Rocket Result: Destroyed by B-75 Beast with Magnetic Acceleration Cannon Performance ------------- Evolutions (1) 500 Regions Visited (4) 800 Robots Destroyed (58) 290 Value Destroyed (1486) 1486 Prototype IDs (1) 20 Alien Tech Used (0) 0 Bonus (1516) 1516 TOTAL SCORE: 4612 Bonus ------- High Alert Combat Kills 173 Follower Combat Kills 671 Entered Garrisons 200 Used RIF Installer 500 Friendly Fire -28 Cogmind --------- Core Integrity 0/400 Matter 120/300 Energy 150/150 System Corruption 5% Temperature Cool (20) Movement Core (1550) Ox30 Location -9/Garrison Parts ------- > --- POWER (1) -------- Micro Nuclear Core > --- PROPULSION (3) --- (None) > --- UTILITY (3) ------ Heat Sink Huge Storage Unit > --- WEAPON (2) ------- Light Assault Rifle Heavy Assault Rifle > --- INVENTORY (25) --- Heat Sink Huge Storage Unit Medium Matter Pod (100) High-capacity Matter Pod (200) Sensor Array Light Armor Plating Light Armor Plating Hardened Light Armor Plating Hardened Light Armor Plating Remote Shield Relay Coupler [Sentry] (19) Rocket Launcher Rocket Launcher Peak State ------------ > --- POWER ------------ Light Angular Momentum Engine > --- PROPULSION ------- Light Treads Light Treads Light Treads > --- UTILITY ---------- Huge Storage Unit Hardened Light Armor Plating Remote Shield > --- WEAPON ----------- Light EM Pulse Cannon Rocket Launcher > --- INVENTORY -------- Ion Engine Light Treads Light Treads Light Treads Heat Sink Heat Sink Heat Sink Huge Storage Unit Medium Matter Pod High-capacity Matter Pod Sensor Array Light Armor Plating Light Armor Plating Light Armor Plating Light Armor Plating Hardened Light Armor Plating Hardened Light Armor Plating Hardened Light Armor Plating Small Laser Beam Rifle Particle Gun Heavy Assault Rifle Rocket Launcher [Rating: 23] Favorites ----------- Power Ion Engine Engine Ion Engine Power Core Light Nuclear Core Propulsion Light Treads Treads Light Treads Utility Huge Storage Unit Device Remote Shield Storage Huge Storage Unit Processor Signal Interpreter Protection Hardened Light Armor Plating Weapon Rocket Launcher Energy Gun Small Laser Energy Cannon Light EM Pulse Cannon Ballistic Gun Heavy Assault Rifle Launcher Rocket Launcher Build | -11 -10 -9 -9 -9 ------- Run | Yrd Mat Mat Sto Gar Slots Evolved 2 | . . 2 . . Power . | . . . . . Propulsion 1 | . . 1 . . Utility 1 | . . 1 . . Weapon . | . . . . . Parts Attached 48 | 8 5 7 12 16 Power 8 | 1 1 . 4 2 Engine 6 | 1 1 . 3 1 Core 2 | . . . 1 1 Reactor . | . . . . . Propulsion 8 | 2 . 2 3 1 Treads 8 | 2 . 2 3 1 Leg . | . . . . . Wheel . | . . . . . Hover . | . . . . . Flight . | . . . . . Utility 16 | 2 2 3 4 5 Device 6 | 1 . 1 1 3 Storage 5 | 1 2 1 1 . Processor 1 | . . 1 . . Hackware . | . . . . . Protection 4 | . . . 2 2 Artifact . | . . . . . Weapon 16 | 3 2 2 1 8 Energy Gun 5 | 1 . . . 4 Energy Cannon 3 | . 1 1 1 . Ballistic Gun 4 | 2 . . . 2 Ballistic Cannon . | . . . . . Launcher 4 | . 1 1 . 2 Special Weapon . | . . . . . Impact Weapon . | . . . . . Slashing Weapon . | . . . . . Piercing Weapon . | . . . . . Special Melee Weapon . | . . . . . Unidentified Prototypes 1 | . . . 1 . Corrupted Parts 1 | . . 1 . . System Corruption 4 | . . 4 . . Parts Lost 24 | . 1 3 2 18 Power 1 | . . . . 1 Propulsion 8 | . . 1 . 7 Utility 7 | . 1 . . 6 Weapon 8 | . . 2 2 4 Highest Loss Streak 11 | . 1 3 1 11 To Critical Strikes . | . . . . . Average Backups 15 | . 7 8 17 21 Power 1 | . 1 1 3 . Propulsion 1 | . . . 1 2 Utility 8 | . 1 2 7 13 Weapon 4 | . 5 4 3 4 Tool/Special . | . . . . . Unused Backups 15 | . . . 6 9 Power 2 | . . . 2 . Propulsion . | . . . . . Utility 12 | . . . 3 9 Weapon 1 | . . . 1 . Tool/Special . | . . . . . Average Slot Usage (%) 95 | . 95 84 98 97 Engine 8 | . 14 11 6 7 Core 3 | . . . 4 3 Treads 31 | . 28 30 33 31 Device 9 | . 10 4 11 10 Storage 11 | . 14 11 11 11 Processor 3 | . . 4 6 . Protection 6 | . . . 4 11 Energy Gun 2 | . . . . 7 Energy Cannon 8 | . 11 10 11 4 Ballistic Gun 1 | . 4 . . 4 Launcher 8 | . 11 10 9 5 Peak Build Rating 23 | 7 10 12 22 23 Average Rating 16 | 5 9 10 17 19 On Entrance 9 | . 7 9 12 21 Avg Prop Armor Cover (%) . | . . . . . Naked Turns . | . . . . . Heaviest Build 107 | 14 19 34 103 107 Greatest Support 60 | 40 40 60 60 60 Greatest Overweight (x) 1 | . . . 1 1 Average Overweight (x) . | . . . . 1 Largest Inventory Capacity 25 | 8 25 25 25 25 Average Capacity 19 | 7 8 9 22 25 Most Carried 25 | 1 8 9 25 24 Average Carried 15 | . 7 8 17 21 Final Capacity 25 | 8 8 15 25 25 Final Carried 22 | 1 8 8 22 13 Class Distribution -------------------- 56% | Scavenger-Mutant 37% | Mutant 6% | Commander-Mutant Dominant Class ---------------- Mutant | -10/Materials Mutant | -9/Materials Scavenger-Mutant | -9/Storage Scavenger-Mutant | -9/Garrison Resources | -11 -10 -9 -9 -9 ----------- Run | Yrd Mat Mat Sto Gar Matter Collected 1181 | 50 171 146 554 260 Remotely . | . . . . . Salvage Created 1564 | 36 241 408 470 409 Parts 112 | 5 15 37 27 28 Haulers Intercepted . | . . . . . Recyclers Shooed 2 | . . . 2 . Parts Field Recycled . | . . . . . Retrieved Matter . | . . . . . Parts Self-Destructed . | . . . . . Prevented . | . . . . . Parts Restored . | . . . . . Kills | -11 -10 -9 -9 -9 ------- Run | Yrd Mat Mat Sto Gar Combat Hostiles Destroyed 42 | . 4 15 8 15 Guns 6 | . . . . 6 Cannons 17 | . 3 8 6 . AOE 17 | . 1 6 2 8 Classes Destroyed 10 | 1 5 3 . 1 Worker 3 | . . 2 1 . Builder 2 | . 2 . . . Tunneler 4 | 2 1 1 . . Recycler 3 | . 1 1 1 . Mechanic 1 | . 1 . . . Watcher 1 | . 1 . . . Swarmer 19 | . . 11 1 7 Grunt 15 | . 4 2 3 6 Sentry 8 | . . 2 4 2 Programmer 2 | . . . . 2 Best Kill Streak 13 | 2 7 13 4 7 Combat Bots Only 9 | . 2 9 2 7 Max Kills in Single Turn 6 | 1 2 6 1 4 Gunslinging . | . . . . . Exploded 4 | . 1 3 1 4 Melee . | . . . . . Uniques/NPCs Destroyed . | . . . . . Combat | -11 -10 -9 -9 -9 -------- Run | Yrd Mat Mat Sto Gar Hostile Shots Fired 280 | . 17 65 40 158 Missed 81 | . 5 15 16 45 Hits 199 | . 12 50 24 113 Projectile 199 | . 12 50 24 113 Critical Strikes 5 | . . 1 1 3 Damage Taken 3288 | . 211 505 372 2200 Core 476 | . 51 81 37 307 Absorbed by Shields 44 | . . . 37 7 Regen/Repaired (Parts) 122 | . . . 122 . Core Remaining (%) 89 | 100 79 . . . Volleys Fired 151 | 2 15 34 33 67 Largest 2 | 2 2 1 1 2 Hottest 121 | 40 89 56 56 121 Shots Fired 190 | 4 19 34 35 98 Gun 88 | 4 . . . 84 Cannon 82 | . 12 30 35 5 Launcher 20 | . 7 4 . 9 Special . | . . . . . Kinetic 38 | 4 . . . 34 Thermal 50 | . . . . 50 Explosive 20 | . 7 4 . 9 Electromagnetic 82 | . 12 30 35 5 Robot Hit Streak 22 | 2 8 9 9 22 Robot Miss Streak 2 | . 2 2 1 2 Penetration Max . | . . . . . Secondary Targets . | . . . . . Shots Hit Robots 131 | 2 11 24 28 66 Core Hits 81 | 2 18 21 11 29 Critical Kills . | . . . . . Critical Parts Destroyed . | . . . . . Critical Strikes 4 | . . . 2 2 Burn 2 | . . . . 2 Corrupt 2 | . . . 2 . Melee Attacks . | . . . . . Impact . | . . . . . Slashing . | . . . . . Piercing . | . . . . . Sneak Attacks . | . . . . . Combat Hostiles . | . . . . . Follow-up Attacks . | . . . . . Damage Inflicted 4209 | 30 830 1130 703 1516 Guns 891 | 30 . . . 861 Cannons 1413 | . 286 471 583 73 Explosions 1900 | . 544 659 115 582 Melee . | . . . . . Ramming 5 | . . . 5 . Kinetic 322 | 30 . . . 292 Thermal 730 | . . 46 115 569 Explosive 1739 | . 544 613 . 582 Electromagnetic 1413 | . 286 471 583 73 Impact . | . . . . . Slashing . | . . . . . Piercing . | . . . . . Highest Corruption 5 | . . 4 4 5 Average Corruption 4 | . . 4 4 4 Corruption Purged . | . . . . . Corruption Blocked . | . . . . . Effects 56 | . . 9 27 20 Message Errors 15 | . . . 7 8 Matter Fused 14 | . . 2 6 6 Heat Flow Errors 9 | . . 4 3 2 Energy Discharges 2 | . . . 2 . Parts Rejected 2 | . . . . 2 Data Loss (minor) 9 | . . 2 5 2 Data Loss (major) 2 | . . . 2 . Misfires 2 | . . . 2 . Alerts 1 | . . 1 . . Overload Shots . | . . . . . Overflow Damage 54 | . 14 20 10 10 Projectiles 8 | . 8 . . . Explosions 46 | . 6 20 10 10 Melee . | . . . . . Knockbacks . | . . . . . Impact . | . . . . . Kinetic . | . . . . . Secondary . | . . . . . Self-Inflicted Damage 173 | . 65 21 36 51 Shots 7 | . 2 2 1 2 Rammed . | . . . . . Targets Rammed 1 | . . . 1 . Kicked . | . . . . . Crushed 1 | . . . 1 . Highest Temperature 305 | . 177 305 266 204 Average Temperature 62 | . 60 76 53 59 Received Heat Transfer 743 | . 84 90 123 446 Siege Activations . | . . . . . Martial Activations . | . . . . . Shielding Activations . | . . . . . Robots Disrupted . | . . . . . Combat Hostiles . | . . . . . Robots Corrupted 1 | . . 1 . . Combat Hostiles 1 | . . 1 . . Parts Fried 3 | . . . 3 . Impact Corruptions . | . . . . . Robots Melted 1 | . . . . 1 Combat Hostiles 1 | . . . . 1 Parts Melted 3 | . . . . 3 Heat Transferred 1724 | . . 100 189 1435 Parts Sabotaged . | . . . . . Parts Stolen . | . . . . . Parts Stripped . | . . . . . Power Chain Reactions 3 | . . 1 2 . Alert | -11 -10 -9 -9 -9 ------- Run | Yrd Mat Mat Sto Gar Maximum Alert Level 3 | . . 1 2 3 Low Security (%) 37 | 100 100 91 32 . Level 1 27 | . . 8 54 17 Level 2 14 | . . . 13 25 Level 3 21 | . . . . 57 Level 4 . | . . . . . Level 5 . | . . . . . High Security . | . . . . . Max Security . | . . . . . Peak Influence 853 | 10 137 292 454 853 Initial 267 | . . 44 116 267 Average 338 | 1 66 63 241 634 Influence Increases 2298 | 10 207 475 930 676 Destroy 0b10 Robot/C 1340 | . 80 300 480 480 Destroy 0b10 Robot/NC 85 | 10 30 20 25 . Destroy Leader 204 | . 12 50 122 20 Allied During Kill 239 | . . . 188 51 Successful Hack 27 | . . . 13 14 Disable Machine 90 | . 30 30 30 . Anti-Garrison Action 50 | . . . . 50 Destroy Structure 158 | . 55 30 12 61 Lose Combat Pursuer 105 | . . 45 60 . Influence Decreases 1555 | 10 100 306 794 345 Entered New Map 368 | . . 63 160 145 Time Decay 747 | 10 90 213 434 . Lost Part 240 | . 10 30 20 180 Lost Ally 200 | . . . 180 20 Squads Dispatched 4 | . . 1 3 . Investigation 2 | . . 1 1 . Extermination . | . . . . . Reinforcement . | . . . . . Assault 2 | . . . 2 . Garrison . | . . . . . Intercept . | . . . . . Searches Triggered . | . . . . . Construction Impeded . | . . . . . Haulers Reinforced . | . . . . . Active Scanning Responses . | . . . . . Cargo Convoy Interrupts . | . . . . . Stealth | -11 -10 -9 -9 -9 --------- Run | Yrd Mat Mat Sto Gar Distress Signals 2 | . . 1 1 . Communications Jammed . | . . . . . Distress Signals . | . . . . . Times Spotted 72 | . 7 19 22 24 Peak Tracking Total 9 | . 4 8 5 9 Tactical Retreats 4 | . . 2 2 . Traps | -11 -10 -9 -9 -9 ------- Run | Yrd Mat Mat Sto Gar Traps Triggered 6 | . . 1 2 3 Indirectly . | . . . . . Trap Hack Attempts . | . . . . . Triggered . | . . . . . Disarmed . | . . . . . Reprogrammed . | . . . . . Reused . | . . . . . Traps Extracted . | . . . . . Installed . | . . . . . Triggered . | . . . . . Machines | -11 -10 -9 -9 -9 ---------- Run | Yrd Mat Mat Sto Gar Machines Disabled 7 | . 2 2 2 1 Max in Single Turn 1 | . 1 1 1 1 Garrison Relay 1 | . . . . 1 Machines Repaired . | . . . . . Machines Dismantled . | . . . . . Machines Sabotaged . | . . . . . Overloaded Fab Kills . | . . . . . Hacking | -11 -10 -9 -9 -9 --------- Run | Yrd Mat Mat Sto Gar Machines Accessed 9 | . . 1 7 1 Terminals 7 | . . 1 5 1 Fabricators . | . . . . . Repair Stations 1 | . . . 1 . Recycling Units . | . . . . . Scanalyzers . | . . . . . Garrison Access 1 | . . . 1 . Total Hacks 19 | . . 4 14 1 Successful 6 | . . . 5 1 Failed 13 | . . 4 9 . Catastrophic 4 | . . 1 3 . Database Lockouts . | . . . . . Manual 11 | . . 4 7 . Terminals 15 | . . 4 10 1 Fabricators . | . . . . . Repair Stations 2 | . . . 2 . Recycling Units . | . . . . . Scanalyzers . | . . . . . Garrison Access 2 | . . . 2 . Terminal Hacks 3 | . . . 2 1 Open Door 1 | . . . 1 . Terminal Index 1 | . . . 1 . Garrison Registry 1 | . . . . 1 Fabricator Hacks . | . . . . . Repair Station Hacks 2 | . . . 2 . Scan Component 1 | . . . 1 . Repair 1 | . . . 1 . Recycling Unit Hacks . | . . . . . Scanalyzer . | . . . . . Garrison Access Hacks 1 | . . . 1 . Unlock Access 1 | . . . 1 . Unauthorized Hacks . | . . . . . Terminals . | . . . . . Fabricators . | . . . . . Repair Stations . | . . . . . Recycling Units . | . . . . . Scanalyzers . | . . . . . Garrison Access . | . . . . . Data Cores Recovered . | . . . . . Used . | . . . . . Hacking Detections 9 | . . 1 7 1 Full Trace Events . | . . . . . Feedback Events . | . . . . . Feedback Blocked . | . . . . . Robot Schematics Acquired . | . . . . . Robots Built . | . . . . . Authchips . | . . . . . Time . | . . . . . Total Robot Build Rating . | . . . . . Part Schematics Acquired . | . . . . . Parts Built . | . . . . . Authchips . | . . . . . Time . | . . . . . Total Part Build Rating . | . . . . . Part Studies Acquired . | . . . . . Parts Repaired 1 | . . . 1 . Time 26 | . . . 26 . Parts Recycled . | . . . . . Recycled Matter . | . . . . . Retrieved Matter . | . . . . . Retrieved Components . | . . . . . Parts Scanalyzed . | . . . . . Part Schematics Acquired . | . . . . . Parts Damaged . | . . . . . Bothacking | -11 -10 -9 -9 -9 ------------ Run | Yrd Mat Mat Sto Gar Used RIF Installer 1 | . . . . 1 Robots Hacked . | . . . . . Non-combat . | . . . . . Combat . | . . . . . Robot Hacks Applied . | . . . . . Relay Couplers Released 9 | . . . . 9 Machine Destruction 5 | . . . . 5 Programmers 4 | . . . . 4 Fabnet Peak Effective % . | . . . . . Robots Rewired . | . . . . . Allies Hacked . | . . . . . Hacks Repelled . | . . . . . Allies | -11 -10 -9 -9 -9 -------- Run | Yrd Mat Mat Sto Gar Total Allies 12 | . . . 12 . Largest Group 12 | . . . 12 3 Highest-Rated Group 150 | . . . 150 55 Highest-Rated Ally 31 | . . . 31 31 Total Orders . | . . . . . Ally Attacks 132 | . . . 91 41 Total Damage 1421 | . . . 853 568 Kills 28 | . . . 19 9 Allies Corrupted . | . . . . . Allies Melted . | . . . . . Intel | -11 -10 -9 -9 -9 ------- Run | Yrd Mat Mat Sto Gar Active Infowar (turns) 932 | 14 179 189 550 . Sensors 739 | . . 189 550 . Seismic 193 | 14 179 . . . Robot Analysis Total . | . . . . . Derelict Logs Recovered . | . . . . . Drone Launches . | . . . . . Drone Recoveries . | . . . . . Exploration | -11 -10 -9 -9 -9 ------------- Run | Yrd Mat Mat Sto Gar Turns Passed 2944 | 92 250 440 1065 1097 Spaces Moved 1174 | 47 124 222 417 364 Core 1 | 1 . . . . Treads 1173 | 46 124 222 417 364 Legs . | . . . . . Wheels . | . . . . . Hover . | . . . . . Flight . | . . . . . Fastest Speed 50 | 50 160 160 160 240 Average Speed 205 | 157 160 160 217 240 Slowest Speed 240 | 160 160 160 240 240 Overloaded Moves . | . . . . . Propulsion Burnouts . | . . . . . Robots Hopped . | . . . . . Potential Cave-ins . | . . . . . Cave-ins Triggered . | . . . . . Exploration Rate (%) 30 | 3 28 23 56 44 Regions Visited 4 Branch Regions 1 Pre-discovered Areas . | . . . . . Known Exits Taken 2 | . . 1 1 . Unknown Exits Taken 2 | 1 1 . . . Scrap Searched . | . . . . . Spaces Dug . | . . . . . Terrain Destroyed 148 | . 51 31 12 54 Melee . | . . . . . Projectile . | . . . . . AOE 148 | . 51 31 12 54 Terrain Rammed . | . . . . . Walls Destroyed . | . . . . . Machines Disabled . | . . . . . Actions | -11 -10 -9 -9 -9 --------- Run | Yrd Mat Mat Sto Gar Total 1516 | 58 158 272 543 485 Wait 67 | . . 5 47 15 Move 1171 | 46 123 221 417 364 Hop . | . . . . . Pick Up 38 | 1 9 2 19 7 Fast Attach 16 | 8 1 4 2 1 Attach 20 | . . 3 1 16 Detach 1 | . . 1 . . Swap 27 | . 5 1 10 11 Drop 20 | 1 5 1 13 . Fire 151 | 2 15 34 33 67 Melee . | . . . . . Ram . | . . . . . Kick . | . . . . . Crush 1 | . . . 1 . Escape Stasis 4 | . . . . 4 Rewire . | . . . . . Trap . | . . . . . Miscellaneous . | . . . . . Route ------- -11/Scrapyard -10/Materials -9/Materials -9/Storage -9/Garrison (discovered 3 exits: [*Mat x3]) History --------- Turn | Location | Event 28 | -11/Scrapyard | Discovered new exit (range 16) 93 | -11/Scrapyard | Entered Materials 281 | -10/Materials | Discovered new exit (range 16) 334 | -10/Materials | Build established: Mutant 343 | -10/Materials | Entered another Materials area 343 | -9/Materials | Evolved 2 slots: Propulsion x1, Utility x1 712 | -9/Materials | Discovered new exit (range 9) 768 | -9/Materials | Destroyed 9 combat bots 772 | -9/Materials | Identified exit to Storage 773 | -9/Materials | Lost 3 parts (1n2w) 783 | -9/Materials | Entered Storage 901 | -9/Storage | Repaired Lgt. Treads 955 | -9/Storage | Assisted by bots powering up and referring to "LRC-V3" 976 | -9/Storage | Met a pair of Derelict thieves 1157 | -9/Storage | Lost 7 allies 1575 | -9/Storage | Build established: Scavenger-Mutant 1843 | -9/Storage | Identified exit to Garrison 1848 | -9/Storage | Entered Garrison 1848 | -9/Garrison | Accompanied by 3 allies 1862 | -9/Garrison | Triggered checkpoint 1994 | -9/Garrison | Triggered checkpoint 2035 | -9/Garrison | Garrison Relay disabled 2258 | -9/Garrison | Triggered checkpoint 2276 | -9/Garrison | Triggered checkpoint 2334 | -9/Garrison | Destroyed 7 combat bots 2372 | -9/Garrison | Lost 3 parts (2u1w) 2402 | -9/Garrison | Triggered checkpoint 2516 | -9/Garrison | Core integrity fell below 50% 2577 | -9/Garrison | Lost 4 parts (1p2n1w) 2647 | -9/Garrison | Discovered new exit (range 68) 2647 | -9/Garrison | Discovered new exit (range 9) 2647 | -9/Garrison | Discovered new exit (range 62) 2765 | -9/Garrison | Installed Relay Interface Framework 2882 | -9/Garrison | Spotted B-75 Beast 2890 | -9/Garrison | Core integrity fell below 20% 2945 | -9/Garrison | Destroyed by B-75 Beast with Magnetic Acceleration Cannon Last Messages --------------- 02841_ 1L5MRO/O6JSQJG VRIC4AR 02914_ B-75 Beast suffers critical hit (Burn). 02919_ Imp. Heat Sink destroyed. 02922_ Lgt. Treads destroyed. 02925_ Sml. Laser destroyed. 02925_ Lgt. Treads destroyed. 02931_ Beam Rifle destroyed. 02934_ System corrupted: Matter fused (-8). 02937_ Lgt. Treads destroyed. 02937_ Knocked back. 02938_ Acquired 14 matter. 02942_ Knocked back. 02943_ Acquired 11 matter. 02945_ Hrd. Light Armor Plating destroyed. Map ----- +----------------------------------------------------+ | ??????# #?# + #???????????????????????????? | | ??????# #?######## #???????????????????????????? | | ??????# #????????# #???????????????????????????? | | ??????# #????????# #???????????????????????????? | | ??????# #????????# ######??????????????????????? | | ?###### #???###### ## #??????????????????????? | | ?#!!!## ##### +## < #??????????????????????? | | ?# + + #??????????????????????? | | ?#[[[## ##### #??????????????????????? | | ?###### #??# ## ######??????????????????????? | | ??????# #??# # #???????????????????????????? | | ??????# #??# # #???????????????????????????? | | ??????# #??## ## #####???????????????????????? | | ####### #### % ## #"T"#???????????????????????? | | !+ +! # "#???????????????????????? | | !# #!!#+##### #########???????????????????????? | | ## ##+# #?# = #???????####???????????????????? | | !# #!!# #?## #???????# #???????????????????? | | + + !# #?# # ##???????# ####????????????????? | | ##+####"#### #########BB#!!#????????????????? | | ##[%^! BB #????????????????? | | +!!* #????????????????? | | ## ######### ##########;+#!!#????????????????? | | ## #???????# #????????# ^####????????????????? | | ## #???????# #????????# #???????????????????? | | ## #???????# #????????#@%#???????????????????? | | ## ###?????# #????????# #???????????????????? | | # #####?# #?????#### %####????????????????? | | # # #?# #?????#!!^ ^!!#????????????????? | | %= # ## #?????#! !#????????????????? | | * #######! !######???????????? | | + + "#???????????? | | # ## ##########/// !!!##"T"#???????????? | | ## ########????????###############???????????? | | #???????????????????????????????????????? | | #???????????????????????????????????????? | | ####????????????????????????????????????? | | + #????????????????????????????????????? | | ## #### #????????????????????????????????????? | | ## ####+#######??????????????????????????????? | | ! ! #??????????????????????????????? | | !!! #??????????????????????????????? | | [ #??????????????????????????????? | | ##++#####+### #??????????????????????????????? | | ## #???# #?# #??????????????????????????????? | | ## #???# #?#^^^#??????????????????????????????? | | ?# #???# #?# #??????????????????????????????? | | ?# #???# #?# #??????????????????????????????? | | ?# #???# #?# #??????????????????????????????? | | ?# ##### ### #??????????????????????????????? | +----------------------------------------------------+ Best States ------------- Heat Dissipation 42 Energy Generation 18 Energy Capacity 280 Matter Stores 300 Matter Capacity 300 Sight Range 16 Robot Scan Range 14 Terrain Scan Density 10 Armor Coverage 300 Evasion (%) 40 Recoil Reduction 3 Item Schematics ----------------- None Robot Schematics ------------------ None Fabricated ------------ Nothing Repaired ---------- Lgt. Treads | 12% | -9/Storage Studied --------- None Alien Tech Used ----------------- None Achievements -------------- None Challenges ------------ None Game ------ Seed ThrowingPrecisionRail Manual? 0 Play Time 00:20:48 Cumulative 88.5 hours Start 2026.02.16 @ 23:45:57 End 2026.02.17 @ 00:01:40 Sessions 1 Manual Loads 0 Difficulty Rogue Special Mode None Game No. 137 Rogue 137 Adventurer 0 Explorer 0 Win Type - Total 0 Types 0/0/0/0/0/0/0/0/0/0 Lore% 17 Gallery% 37 Achievement% 27 Wizard Run 0 Options --------- Layout 1 ASCII 0 Keyboard 0 Movement Mouse Keybinds 0 Fullscreen 2 Font 24/Smallcaps Map View 50x35 Zoom Use 54% Tactical HUD 1 Map Filters NONE Filters NONE Steam 1 RUN: 2e608fd2-2efb-45d4-bacd-c9e5c407a3e4